bitfinex-derivatives/quotes_SOLF0:USTF0_20251208
["timestamp","ask_amount","ask_price","bid_price","bid_amount"]
[1765218482024,3.15,135.31,135.21,166.3613]
[1765218482624,0.05507495,135.27,135.21,166.3613]
[1765218483523,0.05507495,135.27,135.23,6.6552]
[1765218484219,0.05507495,135.27,135.24,6.6548]
[1765218484419,0.05507495,135.27,135.24,103.5215]
[1765218484622,0.05507495,135.27,135.25,62.82]
[1765218485524,0.05507495,135.27,135.25,69.4743]
[1765218485725,3.01,135.32,135.26,103.5061]
[1765218486022,9.6601,135.34,135.26,103.5061]
[1765218486824,0.05277311,135.31,135.29,0.05315646]
[1765218487024,0.05248395,135.31,135.29,0.05315646]
[1765218487226,0.05248395,135.31,135.29,69.52555646]
[1765218488422,5.56380771,135.37,135.32,6.6509]
[1765218488620,3.01,135.37,135.32,6.6509]
[1765218488922,3.01,135.36,135.32,6.6509]
[1765218489531,0.04872651,135.35,135.33,0.04983816]
[1765218493223,3.05872651,135.35,135.33,0.04983816]
[1765218494131,8.60947909,135.34,135.33,0.04983816]
[1765218494727,3.01,135.33,135.3,62.82]
[1765218495834,3.01,135.33,135.3,62.86805895]
[1765218496135,8.61198219,135.32,135.3,0.04805895]
[1765218496342,3.01,135.31,135.3,0.04805895]
[1765218496534,8.61503855,135.31,135.3,0.04805895]
[1765218497435,14.00902862,135.31,135.3,0.04805895]
[1765218497736,14.00902862,135.31,135.27,6.6533]
[1765218497737,3.01,135.3,135.27,6.6533]
[1765218497933,3.01,135.29,135.25,62.82]
[1765218498138,3.01,135.28,135.25,62.82]
[1765218498730,3.03,135.26,135.25,0.02882035]
[1765218498931,8.64000287,135.26,135.25,0.02882035]
[1765218501634,8.64000287,135.26,135.17,103.5708]
[1765218501635,3.03,135.25,135.19,6.6572]
[1765218501937,3.03,135.23,135.19,6.6572]
[1765218502337,3.03,135.21,135.17,6.6581]
[1765218502730,0.05408339,135.2,135.14,62.82]
[1765218503338,0.05408339,135.2,135.15,103.5881]
[1765218503741,0.05408339,135.2,135.17,103.5749]
[1765218504426,0.05408339,135.2,135.18,6.6576]
[1765218506225,0.05408339,135.2,135.18,69.4976]
[1765218508038,8.62784154,135.26,135.21,6.656]
[1765218508235,3.03,135.26,135.21,6.656]
[1765218508630,8.62814967,135.26,135.22,6.6556]
[1765218508836,5.59814967,135.27,135.21,103.5446]
[1765218509142,0.05009017,135.25,135.23,0.04971159]
[1765218509344,0.04862808,135.25,135.23,0.04971159]
[1765218509546,3.03,135.31,135.23,0.04971159]
[1765218509841,5.59872846,135.3,135.23,103.57631159]
[1765218510040,3.03,135.31,135.23,103.57631159]
[1765218510240,3.03,135.29,135.23,0.04971159]
[1765218510738,3.03,135.26,135.23,0.04971159]
[1765218511343,0.04656418,135.27,135.23,0.04971159]
[1765218511545,3.07656418,135.27,135.23,0.04971159]
[1765218512644,3.03,135.25,135.23,0.04971159]
[1765218512838,8.6348525,135.24,135.23,0.04971159]
[1765218513543,3.03,135.24,135.23,0.04971159]
[1765218514345,3.03,135.23,135.18,69.4975]
[1765218515042,3.03,135.23,135.18,6.6575]
[1765218515246,8.63072026,135.23,135.16,5.8333017]
[1765218515447,3.08290429,135.21,135.18,0.05158802]
[1765218515842,3.03,135.2,135.18,0.05158802]
[1765218516347,9.687,135.2,135.18,0.05158802]
[1765218516541,3.03,135.19,135.18,0.05158802]
[1765218516743,3.03,135.18,135.1,103.6262]
[1765218516945,8.62993858,135.18,135.1,103.6262]
[1765218517144,5.59993858,135.2,135.12,103.6124]
[1765218517345,3.03,135.21,135.14,109.4308017]
[1765218517840,0.0542058,135.19,135.17,6.6582]
[1765218518237,0.0542058,135.19,135.14,109.4308017]
[1765218518750,0.0542058,135.19,135.16,6.6587]
[1765218519544,3.0842058,135.19,135.14,6.6595]
[1765218519751,3.0842058,135.19,135.13,62.86]
[1765218519947,3.0842058,135.19,135.11,62.86]
[1765218520149,3.08592815,135.16,135.11,62.86]
[1765218520349,3.08592815,135.16,135.12,6.6606]
[1765218520551,0.05592815,135.16,135.12,6.6606]
[1765218521448,3.08592815,135.16,135.07,27.98182882]
[1765218521647,3.08108094,135.13,135.07,22.14852712]
[1765218521852,0.05108094,135.13,135.07,109.4823017]
[1765218522045,0.05108094,135.13,135.08,103.6418]
[1765218522242,0.05108094,135.13,135.07,5.8333017]
[1765218522447,0.05108094,135.13,135.09,6.6619]
[1765218522853,0.05108094,135.13,135.07,109.4817017]
[1765218522854,0.05108094,135.13,135.1,6.6616]
[1765218523253,0.05108094,135.13,135.09,62.86]
[1765218523556,3.08108094,135.13,135.09,62.86]
[1765218523946,0.05108094,135.13,135.09,62.86]
[1765218524657,0.05108094,135.13,135.11,6.6612]
[1765218527664,3.03,135.2,135.14,6.6596]
[1765218528657,0.05302994,135.18,135.16,0.05017076]
[1765218528857,3.16302994,135.18,135.16,0.05017076]
[1765218532759,0.05302994,135.18,135.16,0.05017076]
[1765218533957,0.05302994,135.18,135.16,6.70877076]
[1765218535171,3.16302994,135.18,135.16,0.05017076]
[1765218536368,3.11,135.17,135.16,0.05017076]
[1765218536674,8.70146394,135.17,135.16,0.05017076]
[1765218537261,3.11,135.17,135.16,0.05017076]
[1765218538474,3.11,135.17,135.12,5.8333017]
[1765218538675,3.11,135.17,135.12,12.4940017]
[1765218540177,3.11,135.17,135.13,6.6603]
[1765218540480,0.05302994,135.18,135.12,5.8333017]
[1765218540678,0.05302994,135.18,135.15,6.6593]
[1765218541174,3.13,135.16,135.12,5.8333017]
[1765218541764,3.13,135.15,135.09,75.3952017]
[1765218541967,0.05433537,135.13,135.09,68.7333017]
[1765218542463,3.18433537,135.13,135.09,69.5619]
[1765218542763,3.18433537,135.13,135.09,62.9]
[1765218542968,3.18433537,135.13,135.09,69.5622]
[1765218543464,0.05433537,135.13,135.09,62.9]
[1765218544474,0.05433537,135.13,135.11,6.6612]
[1765218545068,0.05433537,135.13,135.11,12.4945017]
[1765218545769,8.49881129,135.19,135.15,6.6591]
[1765218546076,8.73509835,135.18,135.13,62.9]
[1765218546268,5.60509835,135.17,135.13,62.9]
[1765218546469,3.13,135.18,135.13,62.9]
[1765218546671,3.13,135.16,135.14,0.0528183]
[1765218548476,15.24583573,135.17,135.14,0.0528183]
[1765218548677,8.73841589,135.16,135.14,0.0528183]
[1765218548862,3.13,135.16,135.14,0.0528183]
[1765218549672,0.05384376,135.17,135.14,0.0528183]
[1765218550880,0.05384376,135.17,135.15,6.6593]
[1765218554677,0.05384376,135.17,135.16,2.45110761]
[1765218557186,5.63380159,135.2,135.16,106.03370761]
[1765218557383,3.13,135.22,135.19,2.45110761]
[1765218557582,5.63327509,135.21,135.19,2.45110761]
[1765218557784,5.63327509,135.2,135.19,2.45110761]
[1765218558076,3.13,135.22,135.19,2.45110761]
[1765218558281,5.63321284,135.21,135.19,2.50058242]
[1765218558485,3.18091721,135.22,135.19,2.50058242]
[1765218558690,5.63450099,135.21,135.19,2.50058242]
[1765218558878,3.18091721,135.22,135.19,2.50058242]
[1765218559079,5.63450099,135.21,135.19,2.50058242]
[1765218559381,3.18091721,135.22,135.19,2.50058242]
[1765218559582,5.63553656,135.21,135.19,9.15788242]
[1765218559785,0.05091721,135.22,135.19,2.50058242]
[1765218559984,0.05091721,135.22,135.21,2.45110761]
[1765218560693,0.05091721,135.22,135.2,6.6568]
[1765218562490,3.19091721,135.22,135.19,12.53758602]
[1765218562690,3.19091721,135.22,135.19,0.04947481]
[1765218562887,8.76755414,135.21,135.19,0.04947481]
[1765218563087,3.14,135.21,135.19,0.04947481]
[1765218563283,0.05091721,135.22,135.19,0.04947481]
[1765218563483,0.05091721,135.22,135.19,5.88038602]
[1765218563700,0.05091721,135.22,135.2,6.6567]
[1765218567403,3.19091721,135.22,135.19,5.88038602]
[1765218568596,3.19091721,135.22,135.19,0.04947481]
[1765218571299,9.84691721,135.22,135.19,0.04947481]
[1765218571503,3.19091721,135.22,135.19,0.04947481]
[1765218571917,9.84681721,135.22,135.19,0.04947481]
[1765218572117,3.14,135.2,135.13,5.83091121]
[1765218572307,3.14,135.2,135.13,68.71091121]
[1765218572617,3.14,135.18,135.14,6.6594]
[1765218573212,0.04686932,135.17,135.15,0.05445039]
[1765218574010,0.04686932,135.17,135.15,6.71375039]
[1765218574322,3.18686932,135.17,135.15,0.05445039]
[1765218575815,3.14,135.15,135.08,62.88]
[1765218576617,3.14,135.15,135.11,6.6612]
[1765218576920,12.07685582,135.16,135.11,6.6612]
[1765218576921,3.18842655,135.14,135.11,6.6612]
[1765218577516,3.18842655,135.14,135.08,62.88]
[1765218577721,3.14,135.12,135.08,62.88]
[1765218578023,3.14,135.12,135.05,6.6639]
[1765218578328,0.05052092,135.1,135.04,175.70090923]
[1765218578522,0.05052092,135.1,135.04,72.02700923]
[1765218579324,3.19052092,135.1,135.06,6.6637]
[1765218579523,3.19052092,135.1,135.04,62.88]
[1765218579917,3.19052092,135.1,135.04,69.5445]
[1765218580119,3.19052092,135.1,135.04,62.88]
[1765218580623,3.19052092,135.1,135.05,6.6641]
[1765218581827,0.05052092,135.1,135.05,103.6643]
[1765218582018,3.19052092,135.1,135.04,166.5519]
[1765218582728,3.19052092,135.1,135.05,6.664]
[1765218583128,3.19052092,135.1,135.04,62.88]
[1765218583421,3.19052092,135.1,135.03,3.74855258]
[1765218583723,3.14,135.09,135.04,6.6646]
[1765218583923,103.6551,135.07,135.03,3.74855258]
[1765218584224,3.14,135.02,134.94,103.7518]
[1765218584425,0.05083109,134.99,134.95,103.7438]
[1765218584823,0.05083109,134.99,134.97,6.6679]
[1765218585424,0.05083109,134.99,134.95,6.6692]
[1765218585628,3.19083109,134.99,134.95,6.6692]
[1765218586722,0.05083109,134.99,134.95,103.7397]
[1765218586925,0.05083109,134.99,134.96,103.7358]
[1765218587633,3.14,135.05,134.98,103.7201]
[1765218587825,3.14,135.05,134.97,112.87580923]
[1765218588335,3.03,135.04,134.97,9.14700923]
[1765218588529,3.03,135.04,134.97,112.87090923]
[1765218588723,3.08183223,135.02,134.99,0.05362463]
[1765218589633,3.08183223,135.02,134.99,6.72062463]
[1765218589828,0.05183223,135.02,134.99,6.72062463]
[1765218592433,3.08183223,135.02,134.99,6.72062463]
[1765218592736,0.05183223,135.02,135.0,6.6666]
[1765218593541,3.03,135.08,135.0,62.94]
[1765218594036,3.03,135.07,135.02,6.6656]
[1765218594434,3.07885247,135.06,135.03,0.05290043]
[1765218594830,3.07885247,135.06,135.03,6.71800043]
[1765218595036,0.04885247,135.06,135.03,0.05290043]
[1765218595534,0.04885247,135.06,135.04,6.6645]
[1765218596541,3.03,135.12,135.04,166.6102]
[1765218597135,3.03,135.12,135.08,6.6626]
[1765218597643,69.6201,135.14,135.09,0.04989094]
[1765218597644,3.0836495,135.11,135.09,0.04989094]
[1765218600336,3.05,135.1,135.01,62.94]
[1765218601136,3.05,135.08,135.01,62.94]
[1765218601435,3.05,135.06,135.04,0.05564214]
[1765218601634,3.05,135.05,134.97,9.14700923]
[1765218601831,3.05,135.05,134.96,103.7332]
[1765218602029,6.6649,135.04,134.97,6.6679]
[1765218602233,3.05,135.03,134.97,6.6679]
[1765218602436,3.05,135.03,134.95,166.6812]
[1765218602634,0.04751691,135.0,134.99,6.6672]
[1765218602837,0.04830855,135.01,134.99,166.6527]
[1765218603037,0.04830855,135.01,135.0,9.14700923]
[1765218603234,0.04830855,135.01,134.98,0.05096173]
[1765218603436,3.09830855,135.01,134.98,0.05096173]
[1765218604325,0.04830855,135.01,134.98,0.05096173]
[1765218604923,0.04830855,135.01,134.99,6.6671]
[1765218605729,0.04830855,135.01,134.99,69.6071]
[1765218606132,47.05,135.05,135.0,9.14700923]
[1765218606333,3.05,135.04,134.93,112.90460923]
[1765218606533,3.05,134.99,134.92,9.14700923]
[1765218606734,3.05,134.99,134.92,72.08700923]
[1765218607128,3.05,134.99,134.86,207.6152]
[1765218607129,3.09982392,134.97,134.94,0.05148084]
[1765218607330,3.05,134.97,134.88,62.94]
[1765218607538,3.05,134.97,134.89,9.14700923]
[1765218608142,3.05,134.97,134.89,15.81880923]
[1765218608441,3.10318963,134.94,134.92,0.05076383]
[1765218608644,3.10544959,134.94,134.92,0.05076383]
[1765218609641,0.05544959,134.94,134.92,6.72136383]
[1765218609940,0.05544959,134.94,134.92,0.05076383]
[1765218610935,3.05,134.97,134.92,0.05076383]
[1765218611236,3.05,134.97,134.92,9.19777306]
[1765218611444,3.05,134.96,134.92,9.19777306]
[1765218611842,3.05,134.94,134.92,0.05076383]
[1765218612837,3.0968099,134.95,134.92,9.19777306]
[1765218613031,8.62973076,134.98,134.92,9.19777306]
[1765218613230,8.62973076,134.97,134.92,9.14700923]
[1765218613429,3.05,134.97,134.92,9.14700923]
[1765218614446,3.05,134.95,134.93,0.04712769]
[1765218615146,3.10257696,134.96,134.93,0.04712769]
[1765218616342,3.05,134.94,134.93,0.04712769]
[1765218616546,8.67137947,134.94,134.93,0.04712769]
[1765218617448,3.05,134.93,134.89,9.14700923]
[1765218617648,3.05,134.91,134.83,103.8323]
[1765218617944,3.05,134.89,134.8,166.8351]
[1765218618141,3.12,134.87,134.83,9.14700923]
[1765218618340,0.05120396,134.86,134.84,0.04972966]
[1765218618644,0.04822648,134.86,134.84,0.04972966]
[1765218618841,5.62048357,134.88,134.85,9.14700923]
[1765218619045,3.12,134.89,134.85,9.14700923]
[1765218619740,3.12,134.91,134.85,15.82070923]
[1765218619949,3.16838109,134.89,134.85,15.82070923]
[1765218620143,3.16838109,134.89,134.86,0.05544171]
[1765218620345,8.74220445,134.88,134.86,0.05544171]
[1765218620540,3.12,134.87,134.86,0.05544171]
[1765218621648,3.16838109,134.89,134.86,0.05544171]
[1765218621846,0.04838109,134.89,134.86,0.05544171]
[1765218622843,0.04838109,134.89,134.88,6.6727]
[1765218623045,0.04838109,134.89,134.88,9.14700923]
[1765218623248,0.04838109,134.89,134.86,0.05544171]
[1765218623445,0.04838109,134.89,134.87,9.14700923]
[1765218623950,3.16838109,134.89,134.86,0.05544171]
[1765218624749,0.04838109,134.89,134.86,0.05544171]
[1765218625544,0.04838109,134.89,134.86,9.20245094]
[1765218625747,0.04838109,134.89,134.87,6.6728]
[1765218625945,0.04838109,134.89,134.86,9.20245094]
[1765218626345,5.40919971,134.93,134.87,103.8035]
[1765218626547,8.52919971,134.95,134.89,9.14700923]
[1765218626746,8.74599177,134.94,134.89,9.14700923]
[1765218626941,3.12,134.99,134.92,9.14700923]
[1765218627152,3.12,134.99,134.93,63.0]
[1765218627351,0.04684825,134.97,134.95,0.05571299]
[1765218627551,3.16684825,134.97,134.95,0.05571299]
[1765218628050,3.12,134.96,134.92,9.14700923]
[1765218628254,3.12,134.96,134.91,63.0]
[1765218628847,0.04684825,134.97,134.92,9.14700923]
[1765218629047,0.04684825,134.97,134.93,0.04716095]
[1765218629345,0.04684825,134.97,134.95,6.6688]
[1765218629545,0.04684825,134.97,134.93,0.04716095]
[1765218630343,0.04684825,134.97,134.93,6.71706095]
[1765218630746,0.04684825,134.97,134.93,0.04716095]
[1765218631355,0.04684825,134.97,134.96,6.6687]
[1765218633555,3.12,135.03,134.98,6.6676]
[1765218634055,3.12,135.02,134.96,63.0]
[1765218634251,3.12,135.02,134.96,69.6686]
[1765218634451,3.12,135.02,134.96,6.6686]
[1765218634651,3.12,134.99,134.98,0.04721505]
[1765218637454,3.16851474,135.0,134.98,0.04721505]
[1765218641758,3.12,134.98,134.93,5.85172477]
[1765218641963,3.12,134.97,134.9,5.85172477]
[1765218642265,3.12,134.97,134.91,5.85172477]
[1765218642466,3.12,134.97,134.94,6.6695]
[1765218642762,3.16913716,134.97,134.94,0.04982754]
[1765218643153,0.04913716,134.97,134.94,0.04982754]
[1765218643357,3.16913716,134.97,134.94,0.04982754]
[1765218643966,0.04913716,134.97,134.94,0.04982754]
[1765218645066,0.04913716,134.97,134.95,6.6691]
[1765218646166,3.16913716,134.97,134.94,0.04982754]
[1765218646366,0.04913716,134.97,134.94,0.04982754]
[1765218646765,3.16913716,134.97,134.83,105.12226823]
[1765218646965,3.12,134.95,134.84,103.8266]
[1765218647170,6.8284981,134.97,134.86,110.4838]
[1765218647171,3.12,134.93,134.86,110.4838]
[1765218647369,3.12,134.93,134.87,5.85172477]
[1765218647567,3.12,134.93,134.87,109.65422477]
[1765218647770,0.05692731,134.91,134.89,0.05684813]
[1765218648177,0.05692731,134.91,134.89,63.03684813]
[1765218649565,3.2,134.98,134.9,5.85172477]
[1765218649863,8.81669275,134.97,134.9,5.85172477]
[1765218650073,5.61669275,134.96,134.9,5.85172477]
[1765218650277,3.2,134.97,134.9,5.85172477]
[1765218650485,3.2,135.0,134.93,5.85172477]
[1765218650672,0.05506333,134.98,134.95,0.04859819]
[1765218652076,0.05506333,134.98,134.95,6.71759819]
[1765218652274,0.05506333,134.98,134.95,110.46069819]
[1765218652874,0.05506333,134.98,134.95,6.71759819]
[1765218654072,0.05506333,134.98,134.97,6.6682]
[1765218654578,0.05506333,134.98,134.97,69.6482]
[1765218655477,0.05506333,134.98,134.97,62.98]
[1765218655875,3.2,135.05,134.97,166.7043]
[1765218656077,5.62411551,135.04,134.97,166.7043]
[1765218656268,3.2,135.05,134.97,166.7043]
[1765218656473,5.62223811,135.04,134.97,166.7043]
[1765218656675,3.2,135.05,134.99,6.6671]
[1765218656871,0.05264566,135.03,135.01,0.05086872]
[1765218657490,0.05264566,135.03,135.01,69.69706872]
[1765218657871,0.05264566,135.03,135.01,0.05086872]
[1765218658076,0.05264566,135.03,135.01,63.03086872]
[1765218659182,0.05264566,135.03,135.01,69.69676872]
[1765218659377,8.81424845,135.09,135.01,68.88259349]
[1765218659584,3.2,135.09,135.04,6.6648]
[1765218660377,8.62424845,135.11,135.05,69.644]
[1765218660683,0.05318611,135.08,135.05,69.69136971]
[1765218660978,0.05318611,135.08,135.05,63.02736971]
[1765218661176,3.06318611,135.08,135.05,0.04736971]
[1765218664086,0.05318611,135.08,135.05,0.04736971]
[1765218664489,3.06318611,135.08,135.05,0.04736971]
[1765218667284,3.01,135.07,135.05,0.04736971]
[1765218667885,3.06318611,135.08,135.05,0.04736971]
[1765218668479,0.05318611,135.08,135.05,0.04736971]
[1765218668791,3.06318611,135.08,135.05,0.04736971]
[1765218669587,15.33028167,135.08,135.05,0.04736971]
[1765218669790,3.01,135.07,135.05,0.04736971]
[1765218671284,3.01,135.06,134.99,6.6669]
[1765218671587,3.01,135.04,134.97,68.81172477]
[1765218672091,3.01,135.03,134.97,69.6279]
[1765218672287,0.05472676,135.01,134.99,0.05032447]
[1765218672594,3.06047128,135.01,134.99,0.05032447]
[1765218672889,112.81879956,135.08,134.99,0.05032447]
[1765218672890,3.01,135.08,135.0,5.85172477]
[1765218673097,5.61148085,135.07,135.0,5.85172477]
[1765218673280,3.01,135.08,135.0,5.85172477]
[1765218673481,5.60595286,135.07,134.99,103.7099]
[1765218673687,3.01,135.08,135.03,6.6651]
[1765218674092,0.04759077,135.07,135.04,0.05157085]
[1765218674288,0.04759077,135.07,135.04,6.71617085]
[1765218674486,0.04759077,135.07,135.04,0.05157085]
[1765218675382,3.05759077,135.07,135.04,0.05157085]
[1765218677186,0.04759077,135.07,135.04,0.05157085]
[1765218678096,0.04759077,135.07,135.05,6.6641]
[1765218680085,9.8202,135.14,135.08,6.6626]
[1765218680293,3.16,135.12,135.08,6.6626]
[1765218680694,3.16,135.11,135.03,5.85172477]
[1765218680889,106.8071,135.08,134.97,109.57662477]
[1765218681090,6.6654,135.03,134.96,6.6685]
[1765218681290,3.16,135.02,134.92,103.7628]
[1765218681488,3.16,135.0,134.9,103.7791]
[1765218681791,3.16,134.98,134.9,62.94]
[1765218681996,0.05424232,134.95,134.93,0.0505149]
[1765218682195,0.04713497,134.95,134.93,0.05620093]
[1765218682493,3.20713497,134.95,134.93,0.05620093]
[1765218686193,3.20713497,134.95,134.9,69.6115]
[1765218686194,3.20713497,134.95,134.9,62.94]
[1765218687295,3.20713497,134.95,134.91,0.04818617]
[1765218688089,3.16,134.94,134.91,0.04818617]
[1765218690503,3.16,134.94,134.86,62.96]
[1765218691500,0.05368202,134.91,134.89,0.05315302]
[1765218693097,3.16,134.95,134.89,0.05315302]
[1765218693498,3.16,134.95,134.89,6.72505302]
[1765218694101,3.16,134.95,134.9,6.6715]
[1765218694300,0.05553641,134.94,134.89,103.84055302]
[1765218694499,0.05553641,134.94,134.91,103.7743]
[1765218694702,0.05553641,134.94,134.92,62.98]
[1765218694904,3.16,134.98,134.93,6.6699]
[1765218695914,3.16,134.98,134.94,6.6695]
[1765218696100,0.05538045,134.97,134.94,6.72595835]
[1765218696301,0.05538045,134.97,134.95,6.669]
[1765218696898,9.8256,135.03,134.96,6.6683]
[1765218697095,9.8256,135.03,134.94,103.7489]
[1765218697505,3.16,135.01,134.92,166.7444]
[1765218697805,3.16,135.01,134.95,103.7415]
[1765218698103,0.05603662,134.99,134.97,0.04917284]
[1765218698302,0.05603662,134.99,134.97,69.69727284]
[1765218699112,3.16,135.04,134.99,6.6668]
[1765218699305,9.8236,135.07,134.98,103.72]
[1765218699906,9.8236,135.07,135.0,6.6665]
[1765218700106,0.05141699,135.05,135.02,0.05426682]
[1765218700302,3.21141699,135.05,135.02,0.05426682]
[1765218706514,3.16,135.03,134.93,103.7579]
[1765218706714,3.16,135.03,134.94,62.98]
[1765218706908,3.16,135.03,134.97,6.668]
[1765218707516,0.05001914,135.01,134.99,0.05537974]
[1765218708123,0.05001914,135.01,134.99,6.72247974]
[1765218709424,53.824,135.06,134.99,6.72247974]
[1765218709425,3.16,135.06,135.0,6.6663]
[1765218710218,3.16,135.06,135.01,6.6661]
[1765218710425,0.05013441,135.05,135.02,0.04904008]
[1765218711526,0.05013441,135.05,135.02,6.71474008]
[1765218711930,0.05013441,135.05,135.02,0.04904008]
[1765218712324,3.07013441,135.05,135.02,0.04904008]
[1765218721634,3.02,135.04,135.02,0.04904008]
[1765218722233,3.02,135.03,134.97,6.6679]
[1765218722438,3.02,135.02,134.91,103.7703]
[1765218722641,3.02,135.02,134.93,103.7588]
[1765218723141,3.02,135.01,134.92,62.96]
[1765218723439,3.02,134.97,134.95,0.04830506]
[1765218725138,3.02,134.97,134.92,62.96]
[1765218725340,3.02,134.97,134.92,69.6306]
[1765218726441,3.02,134.97,134.93,0.04818551]
[1765218726652,3.17,134.96,134.86,103.8115]
[1765218726851,8.7696561,134.96,134.86,166.7715]
[1765218727148,8.7696561,134.96,134.88,103.7977]
[1765218727149,3.17,134.94,134.88,103.7977]
[1765218727538,3.17,134.94,134.89,103.7879]
[1765218727943,0.05532033,134.93,134.91,6.6709]
[1765218730336,0.05532033,134.93,134.91,69.6509]
[1765218730851,8.74662147,135.0,134.92,103.7641]
[1765218731147,8.74834843,135.0,134.92,103.7641]
[1765218731337,3.17,135.0,134.93,103.7591]
[1765218731743,0.05196614,134.98,134.95,0.04933559]
[1765218732550,0.05196614,134.98,134.96,6.6685]
[1765218732939,0.05196614,134.98,134.95,0.04933559]
[1765218732940,3.22196614,134.98,134.95,0.04933559]
[1765218733148,3.17,134.97,134.95,0.04933559]
[1765218735552,3.22196614,134.98,134.95,0.04933559]
[1765218735938,0.05196614,134.98,134.95,6.71833559]
[1765218736337,3.22196614,134.98,134.95,0.04933559]
[1765218736952,3.17,134.96,134.95,0.04933559]
[1765218738348,3.25196614,134.98,134.95,0.04933559]
[1765218738550,0.05196614,134.98,134.95,0.04933559]
[1765218738754,0.05196614,134.98,134.96,6.6686]
[1765218738956,3.25196614,134.98,134.95,63.02933559]
[1765218739342,3.2,134.97,134.95,63.02933559]
[1765218739746,0.05196614,134.98,134.95,63.02933559]
[1765218739948,3.25196614,134.98,134.95,63.02933559]
[1765218740851,8.82409913,134.98,134.95,63.02933559]
[1765218741050,3.2,134.97,134.95,0.04933559]
[1765218744750,0.05196614,134.98,134.95,0.04933559]
[1765218745847,0.05196614,134.98,134.95,6.71833559]
[1765218746351,3.25196614,134.98,134.95,0.04933559]
[1765218748346,3.2,134.97,134.95,0.04933559]
[1765218751263,9.8683,134.97,134.95,0.04933559]
[1765218751464,3.2,134.96,134.95,0.04933559]
[1765218751660,3.2,134.96,134.9,62.98]
[1765218751960,3.2,134.93,134.9,62.98]
[1765218752563,3.2,134.92,134.81,103.8486]
[1765218752768,8.77106867,134.91,134.8,204.15398132]
[1765218753065,8.77087815,134.9,134.81,62.98]
[1765218753266,3.2,134.9,134.81,62.98]
[1765218753559,0.04891271,134.87,134.84,0.05633358]
[1765218753768,3.24891271,134.87,134.84,0.05633358]
[1765218757563,0.04891271,134.87,134.84,0.05633358]
[1765218757769,0.04891271,134.87,134.84,103.88023358]
[1765218758673,5.56144061,134.95,134.86,109.67293971]
[1765218758862,8.76144061,134.95,134.87,63.0]
[1765218759064,3.2,134.95,134.87,63.0]
[1765218759460,5.56171222,134.97,134.89,5.86343971]
[1765218759775,0.05339881,134.94,134.92,0.05276636]
[1765218761959,0.05339881,134.94,134.92,6.72326636]
[1765218762559,3.25339881,134.94,134.92,0.05276636]
[1765218763167,0.05339881,134.94,134.92,0.05276636]
[1765218763366,3.25339881,134.94,134.92,0.05276636]
[1765218764072,0.05339881,134.94,134.92,0.05276636]
[1765218764366,3.25339881,134.94,134.92,0.05276636]
[1765218764565,0.05339881,134.94,134.92,0.05276636]
[1765218764967,8.46056142,135.01,134.93,103.758]
[1765218765159,5.58673829,135.0,134.93,103.758]
[1765218765365,3.2,135.01,134.94,6.6695]
[1765218765565,5.58667428,135.0,134.93,103.758]
[1765218765763,3.2,135.01,134.93,103.758]
[1765218765962,0.05586085,134.98,134.96,0.05395001]
[1765218768079,0.05586085,134.98,134.96,6.72245001]
[1765218768280,0.05586085,134.98,134.96,69.72245001]
[1765218768573,3.13586085,134.98,134.96,63.05395001]
[1765218769173,3.13586085,134.98,134.96,0.05395001]
[1765218771072,3.08,134.96,134.86,5.86343971]
[1765218771272,3.08,134.94,134.87,63.0]
[1765218771476,3.08,134.94,134.88,103.7973]
[1765218771674,3.08,134.94,134.87,166.8024]
[1765218772075,0.04966655,134.92,134.89,0.05361645]
[1765218773085,3.12966655,134.92,134.89,0.05361645]
[1765218776088,0.04966655,134.92,134.89,0.05361645]
[1765218776682,3.12966655,134.92,134.89,0.05361645]
[1765218778385,0.04966655,134.92,134.89,0.05361645]
[1765218778783,0.04966655,134.92,134.89,6.72561645]
[1765218780284,0.04966655,134.92,134.9,6.6714]
[1765218780485,0.04966655,134.92,134.91,63.0]
[1765218780887,3.18,134.98,134.91,63.0]
[1765218781495,3.18,134.98,134.92,6.6705]
[1765218781693,3.18,134.96,134.91,63.0]